[Event "2. Itzehoer Schach Open"]
[Site "Itzehoe, Germany"]
[Date "2023.04.29"]
[Round "1.29"]
[White "Marx, Jakob"]
[Black "Wohlrabe, Joerg"]
[Result "0-1"]
[TimeControl "90 min / 40 Züge + 30 min + 30 Sek pro Zug"]
[WhiteElo "1398"]
[BlackElo "1635"]

1. e4 {[%clk 01:30:59]} {[%emt 00:00:01]} e6 {[%clk 01:30:55]} {[%emt
00:00:05]} 2. d4 {[%clk 01:31:19]} {[%emt 00:00:10]} b6 {[%clk 01:31:21]}
{[%emt 00:00:04]} 3. Be3 {[%clk 01:31:36]} {[%emt 00:00:13]} Bb7 {[%clk
01:31:43]} {[%emt 00:00:08]} 4. Nd2 {[%clk 01:32:00]} {[%emt 00:00:06]} Be7
{[%clk 01:31:56]} {[%emt 00:00:17]} 5. Bd3 {[%clk 01:32:06]} {[%emt 00:00:24]}
Nf6 {[%clk 01:31:11]} {[%emt 00:01:15]} 6. Ngf3 {[%clk 01:32:20]} {[%emt
00:00:15]} O-O {[%clk 01:30:30]} {[%emt 00:01:11]} 7. O-O {[%clk 01:32:47]}
{[%emt 00:00:04]} d6 {[%clk 01:30:39]} {[%emt 00:00:21]} 8. c3 {[%clk
01:32:59]} {[%emt 00:00:17]} c5 {[%clk 01:30:24]} {[%emt 00:00:45]} 9. Qc2
{[%clk 01:33:06]} {[%emt 00:00:24]} h6 {[%clk 01:30:12]} {[%emt 00:00:42]} 10.
Rfe1 {[%clk 01:32:18]} {[%emt 00:01:18]} Nc6 {[%clk 01:30:03]} {[%emt
00:00:38]} 11. Nf1 {[%clk 01:32:24]} {[%emt 00:00:24]} cxd4 {[%clk 01:29:41]}
{[%emt 00:00:52]} 12. cxd4 {[%clk 01:32:51]} {[%emt 00:00:04]} Rc8 {[%clk
01:29:50]} {[%emt 00:00:21]} 13. Qd2 {[%clk 01:33:03]} {[%emt 00:00:18]} Ng4
{[%clk 01:29:18]} {[%emt 00:01:01]} 14. Bf4 {[%clk 01:33:08]} {[%emt 00:00:25]}
e5 {[%clk 01:28:47]} {[%emt 00:01:02]} 15. dxe5 {[%clk 01:32:36]} {[%emt
00:01:02]} dxe5 {[%clk 01:28:29]} {[%emt 00:00:48]} 16. Bg3 {[%clk 01:32:57]}
{[%emt 00:00:09]} Bb4 {[%clk 01:28:30]} {[%emt 00:00:29]} 17. Qe2 {[%clk
01:32:56]} {[%emt 00:00:31]} Bxe1 {[%clk 01:28:51]} {[%emt 00:00:10]} 18. Nxe1
{[%clk 01:33:09]} {[%emt 00:00:16]} Nf6 {[%clk 01:28:48]} {[%emt 00:00:32]} 19.
Rd1 {[%clk 01:33:00]} {[%emt 00:00:40]} Qe7 {[%clk 01:28:06]} {[%emt 00:01:12]}
20. Bh4 {[%clk 01:32:41]} {[%emt 00:00:50]} Nb4 {[%clk 01:23:21]} {[%emt
00:05:15]} 21. Ne3 {[%clk 01:32:24]} {[%emt 00:00:47]} Nxd3 {[%clk 01:19:45]}
{[%emt 00:04:07]} 22. Qxd3 {[%clk 01:31:21]} {[%emt 00:01:32]} Qe6 {[%clk
01:16:56]} {[%emt 00:03:19]} 23. Qa3 {[%clk 01:29:55]} {[%emt 00:01:57]} Nxe4
{[%clk 01:13:29]} {[%emt 00:03:56]} 24. f3 {[%clk 01:29:37]} {[%emt 00:00:48]}
Nc5 {[%clk 01:13:10]} {[%emt 00:00:49]} 25. Nc4 {[%clk 01:27:17]} {[%emt
00:02:50]} Qxc4 {[%clk 01:12:57]} {[%emt 00:00:44]} 26. Bf2 {[%clk 01:24:43]}
{[%emt 00:03:04]} Ba6 {[%clk 01:12:40]} {[%emt 00:00:48]} 27. Nc2 {[%clk
01:24:07]} {[%emt 00:01:06]} Qxc2 {[%clk 01:12:29]} {[%emt 00:00:40]} 28. Ra1
{[%clk 01:23:33]} {[%emt 00:01:04]} Rfd8 {[%clk 01:09:18]} {[%emt 00:03:40]} 29.
Bxc5 {[%clk 01:23:07]} {[%emt 00:00:57]} Rd1+ {[%clk 01:08:55]} {[%emt
00:00:52]} 30. Rxd1 {[%clk 01:23:30]} {[%emt 00:00:07]} Qxd1+ {[%clk 01:09:15]}
{[%emt 00:00:10]} 31. Kf2 {[%clk 01:23:51]} {[%emt 00:00:08]} Qe2+ {[%clk
01:08:42]} {[%emt 00:01:03]} 32. Kg3 {[%clk 01:24:02]} {[%emt 00:00:19]} Rxc5
{[%clk 01:08:45]} {[%emt 00:00:28]} 33. Qa4 {[%clk 01:24:19]} {[%emt 00:00:12]}
Qe1+ {[%clk 01:07:34]} {[%emt 00:01:41]} 34. Kh3 {[%clk 01:24:36]} {[%emt
00:00:13]} Bc8+ {[%clk 01:07:30]} {[%emt 00:00:35]} 35. g4 {[%clk 01:24:54]}
{[%emt 00:00:11]} g5 {[%clk 01:03:54]} {[%emt 00:04:07]} 36. b4 {[%clk
01:24:00]} {[%emt 00:01:24]} Rc3 {[%clk 01:03:44]} {[%emt 00:00:40]} 37. Kg2
{[%clk 01:24:01]} {[%emt 00:00:29]} Qe2+ {[%clk 01:03:37]} {[%emt 00:00:37]} 38.
Kg1 {[%clk 01:23:50]} {[%emt 00:00:41]} Rc1+ {[%clk 01:03:57]} {[%emt
00:00:10]} 39. Qd1 {[%clk 01:24:16]} {[%emt 00:00:04]} Rxd1# {[%clk 01:04:12]}
{[%emt 00:00:15]} 0-1

[Event "2. Itzehoer Schach Open"]
[Site "Itzehoe, Germany"]
[Date "2023.04.29"]
[Round "1.15"]
[White "Ackermann, Hans-Christian"]
[Black "Neuendorf, Max"]
[Result "0-1"]
[TimeControl "90 min / 40 Züge + 30 min + 30 Sek pro Zug"]
[WhiteElo "1722"]
[BlackElo "2000"]

1. e4 {[%emt 14:53:53]} c5 {[%emt 00:00:25]} 2. f4 {[%emt 00:00:13]} Nc6 {[%emt
00:00:55]} 3. Nf3 {[%emt 00:00:24]} e6 {[%emt 00:02:22]} 4. Bc4 {[%emt
00:01:12]} d5 {[%emt 00:01:49]} 5. exd5 {[%emt 00:00:14]} exd5 {[%emt
00:00:08]} 6. Be2 {[%emt 00:03:45]} Nf6 {[%emt 00:10:20]} 7. O-O {[%emt
00:01:43]} d4 {[%emt 00:16:27]} 8. d3 {[%emt 00:02:52]} Bd6 {[%emt 00:07:22]} 9.
Na3 {[%emt 00:01:40]} O-O {[%emt 00:04:58]} 10. Nc4 {[%emt 00:01:47]} Bc7
{[%emt 00:01:21]} 11. Nce5 {[%emt 00:05:14]} Re8 {[%emt 00:09:06]} 12. Nxc6
{[%emt 00:00:31]} bxc6 {[%emt 00:00:08]} 13. c3 {[%emt 00:02:15]} dxc3 {[%emt
00:08:06]} 14. bxc3 {[%emt 00:00:20]} Nd5 {[%emt 00:00:17]} 15. Bd2 {[%emt
00:06:33]} Bxf4 {[%emt 00:03:50]} 16. c4 {[%emt 00:02:09]} Bxd2 {[%emt
00:03:44]} 17. Qxd2 {[%emt 00:01:20]} Ne3 {[%emt 00:02:51]} 18. Rfe1 {[%emt
00:06:13]} Nf5 {[%emt 00:08:23]} 19. Bf1 {[%emt 00:02:47]} Be6 {[%emt
00:01:13]} 20. Qc3 {[%emt 00:10:53]} Nd4 {[%emt 00:02:51]} 21. Ne5 {[%emt
00:01:02]} Qd6 {[%emt 00:01:54]} 22. Re3 {[%emt 00:00:44]} f6 {[%emt 00:04:03]}
23. Nf3 {[%emt 00:02:27]} Nxf3+ {[%emt 00:00:42]} 24. Rxf3 {[%emt 00:00:22]}
Qd4+ {[%emt 00:00:46]} 25. Qxd4 {[%emt 00:00:20]} cxd4 {[%emt 00:00:02]} 26.
Rf4 {[%emt 00:03:33]} c5 {[%emt 00:00:27]} 27. Be2 {[%emt 00:03:21]} Rab8
{[%emt 00:01:33]} 28. Bf3 {[%emt 00:00:30]} Rb2 {[%emt 00:07:56]} 29. Bc6
{[%emt 00:01:31]} Reb8 {[%emt 00:02:29]} 30. h3 {[%emt 00:01:13]} Rd2 {[%emt
00:01:43]} 31. Rf3 {[%emt 00:01:23]} Rbb2 {[%emt 00:00:09]} 32. Rg3 {[%emt
00:00:32]} Rxa2 {[%emt 00:00:12]} 33. Rf1 {[%emt 00:01:03]} Kf7 {[%emt
00:00:58]} 34. Be4 {[%emt 00:04:19]} g6 {[%emt 00:02:12]} 35. Rg5 {[%emt
00:01:41]} f5 {[%emt 00:00:45]} 36. h4 {[%emt 00:02:59]} Ke7 {[%emt 00:01:19]}
37. Bd5 {[%emt 00:01:32]} Bxd5 {[%emt 00:00:40]} 38. cxd5 {[%emt 00:00:15]}
Rxd3 {[%emt 00:00:53]} 39. Kh2 {[%emt 00:01:28]} Re3 {[%emt 00:01:04]} 40. Rg3
{[%emt 00:02:29]} Rxg3 {[%emt 00:00:33]} 41. Kxg3 {[%emt 00:00:08]} Kd6 {[%emt
00:00:14]} 42. h5 {[%emt 00:00:27]} Re2 {[%emt 00:01:04]} 43. hxg6 {[%emt
00:00:24]} hxg6 {[%emt 00:00:05]} 44. Ra1 {[%emt 00:00:48]} Kxd5 {[%emt
00:00:19]} 45. Rxa7 {[%emt 00:00:11]} Re6 {[%emt 00:00:20]} 46. Kf4 {[%emt
00:00:28]} d3 {[%emt 00:00:32]} 47. Ra2 {[%emt 00:00:22]} c4 {[%emt 00:00:24]}
48. g4 {[%emt 00:00:17]} fxg4 {[%emt 00:00:44]} 49. Kxg4 {[%emt 00:00:17]} c3
{[%emt 00:01:16]} 0-1

[Event "2. Itzehoer Schach Open"]
[Site "Itzehoe, Germany"]
[Date "2023.04.29"]
[Round "1.33"]
[White "Oblender, Rudi"]
[Black "Steiner, Peter Markus"]
[Result "1/2-1/2"]
[TimeControl "90 min / 40 Züge + 30 min + 30 Sek pro Zug"]
[WhiteElo "1391"]
[BlackElo "1603"]

1. e4 {[%clk 01:30:58]} {[%emt 00:00:02]} e6 {[%clk 01:30:51]} {[%emt
00:00:09]} 2. Nc3 {[%clk 01:30:37]} {[%emt 00:00:52]} d5 {[%clk 01:31:01]}
{[%emt 00:00:19]} 3. exd5 {[%clk 01:30:57]} {[%emt 00:00:10]} exd5 {[%clk
01:31:23]} {[%emt 00:00:07]} 4. d4 {[%clk 01:31:23]} {[%emt 00:00:05]} Nf6
{[%clk 01:30:09]} {[%emt 00:01:44]} 5. Nf3 {[%clk 01:31:32]} {[%emt 00:00:21]}
Be7 {[%clk 01:30:14]} {[%emt 00:00:24]} 6. Bd3 {[%clk 01:31:22]} {[%emt
00:00:40]} Bg4 {[%clk 01:29:28]} {[%emt 00:01:15]} 7. h3 {[%clk 01:31:32]}
{[%emt 00:00:22]} Bh5 {[%clk 01:29:47]} {[%emt 00:00:08]} 8. g4 {[%clk
01:30:36]} {[%emt 00:01:29]} Bg6 {[%clk 01:30:06]} {[%emt 00:00:11]} 9. Be3
{[%clk 01:31:00]} {[%emt 00:00:07]} Nbd7 {[%clk 01:25:08]} {[%emt 00:05:27]} 10.
Bxg6 {[%clk 01:29:00]} {[%emt 00:02:30]} hxg6 {[%clk 01:25:27]} {[%emt
00:00:11]} 11. Qd3 {[%clk 01:27:44]} {[%emt 00:01:47]} c6 {[%clk 01:23:56]}
{[%emt 00:02:01]} 12. O-O-O {[%clk 01:24:14]} {[%emt 00:04:00]} Qc7 {[%clk
01:22:32]} {[%emt 00:01:53]} 13. Rde1 {[%clk 01:23:09]} {[%emt 00:01:37]} O-O-O
{[%clk 01:22:36]} {[%emt 00:00:26]} 14. Ne5 {[%clk 01:22:09]} {[%emt 00:01:30]}
Nxe5 {[%clk 01:20:43]} {[%emt 00:02:22]} 15. dxe5 {[%clk 01:22:34]} {[%emt
00:00:05]} Nd7 {[%emt 00:01:18]} 16. Bxa7 {[%clk 01:21:29]} {[%emt 00:00:32]}
b6 {[%emt 00:00:33]} 17. Qa6+ {[%clk 01:21:43]} Qb7 {[%clk 01:21:36]} {[%emt
00:00:06]} 18. Qxb7+ {[%clk 01:21:50]} {[%emt 00:00:23]} Kxb7 {[%clk 01:22:04]}
{[%emt 00:00:02]} 19. e6 {[%clk 01:22:05]} {[%emt 00:00:14]} fxe6 {[%clk
01:20:56]} {[%emt 00:01:36]} 20. Rxe6 {[%clk 01:22:11]} {[%emt 00:00:26]} Bg5+
{[%clk 01:20:09]} {[%emt 00:01:17]} 21. Kd1 {[%clk 01:20:24]} {[%emt 00:02:18]}
Bf6 {[%clk 01:20:29]} {[%emt 00:00:09]} 22. Bxb6 {[%clk 01:20:15]} {[%emt
00:00:41]} Kxb6 {[%clk 01:19:46]} {[%emt 00:01:12]} 23. Nxd5+ {[%clk 01:20:01]}
{[%emt 00:00:45]} Kc5 {[%clk 01:19:56]} {[%emt 00:00:19]} 24. Nxf6 {[%clk
01:19:46]} {[%emt 00:00:46]} Nf8+ {[%emt 00:04:23]} 25. Ke2 {[%emt 00:01:34]}
Nxe6 {[%clk 01:11:50]} {[%emt 00:02:38]} 26. Ne4+ {[%clk 01:19:36]} {[%emt
00:00:40]} Kb6 {[%clk 01:11:53]} {[%emt 00:00:22]} 27. Ke3 {[%clk 01:19:19]}
{[%emt 00:00:53]} Ra8 {[%clk 01:10:17]} {[%emt 00:02:06]} 28. a3 {[%clk
01:19:20]} {[%emt 00:00:29]} Nc5 {[%clk 01:04:09]} {[%emt 00:06:37]} 29. Nd6
{[%clk 01:16:43]} {[%emt 00:03:07]} Kc7 {[%clk 01:02:29]} {[%emt 00:02:05]} 30.
Nc4 {[%clk 01:16:31]} {[%emt 00:00:47]} Rae8+ {[%clk 01:00:33]} {[%emt
00:02:26]} 31. Kd4 {[%clk 01:16:24]} {[%emt 00:00:37]} Ne6+ {[%clk 00:59:27]}
{[%emt 00:01:36]} 32. Ke4 {[%clk 01:15:59]} {[%emt 00:00:55]} Ng5+ {[%clk
00:56:52]} {[%emt 00:03:04]} 33. Kf4 {[%clk 01:14:20]} {[%emt 00:02:09]} Re4+
{[%clk 00:57:09]} {[%emt 00:00:13]} 34. Kxg5 {[%clk 01:14:40]} {[%emt
00:00:10]} Rxc4 {[%clk 00:57:31]} {[%emt 00:00:08]} 35. c3 {[%clk 01:14:44]}
{[%emt 00:00:27]} Re4 {[%clk 00:49:14]} {[%emt 00:08:46]} 36. Kxg6 {[%clk
01:11:39]} {[%emt 00:03:36]} Rxg4+ {[%clk 00:49:15]} {[%emt 00:00:29]} 37. hxg4
{[%clk 01:12:02]} {[%emt 00:00:07]} Rxh1 {[%clk 00:49:40]} {[%emt 00:00:05]} 38.
f4 {[%clk 01:12:23]} {[%emt 00:00:09]} Rg1 {[%clk 00:49:53]} {[%emt 00:00:16]}
39. g5 {[%clk 01:12:47]} {[%emt 00:00:08]} Rg4 {[%clk 00:49:54]} {[%emt
00:00:28]} 40. f5 {[%clk 01:13:11]} {[%emt 00:00:07]} 1/2-1/2

[ePGN "0.1;DGT LiveChess/2.2.5"]

[Event "2. Itzehoer Schach Open"]
[Site "Itzehoe, Germany"]
[Date "2023.04.29"]
[Round "1.42"]
[White "Lieb, Max"]
[Black "Greiner, Jan Oluf"]
[Result "1-0"]
[TimeControl "90 min für 40 Züge, Rest 30 min + 30 Sek pro Zug"]
[WhiteElo "1333"]
[BlackElo "960"]

1. e4 {[%clk 01:30:57]} {[%emt 00:00:03]} e5 {[%clk 01:30:44]} {[%emt
00:00:16]} 2. Nc3 {[%clk 01:31:22]} {[%emt 00:00:05]} Nc6 {[%clk 01:31:08]}
{[%emt 00:00:07]} 3. Bc4 {[%clk 01:31:38]} {[%emt 00:00:13]} Bc5 {[%clk
01:31:12]} {[%emt 00:00:26]} 4. Qg4 {[%clk 01:31:59]} {[%emt 00:00:09]} Qf6
{[%clk 01:27:51]} {[%emt 00:03:49]} 5. Nd5 {[%clk 01:32:18]} {[%emt 00:00:13]}
Qxf2+ {[%clk 01:20:38]} {[%emt 00:07:43]} 6. Kd1 {[%clk 01:32:37]} {[%emt
00:00:10]} Kf8 {[%clk 01:17:27]} {[%emt 00:03:41]} 7. Nh3 {[%clk 01:32:52]}
{[%emt 00:00:16]} h5 {[%clk 01:12:16]} {[%emt 00:05:40]} 8. Qg5 {[%clk
01:32:52]} {[%emt 00:00:31]} f6 {[%clk 01:11:13]} {[%emt 00:01:32]} 9. Qg6
{[%clk 01:33:13]} {[%emt 00:00:09]} Qh4 {[%clk 01:11:01]} {[%emt 00:00:41]} 10.
Ne3 {[%clk 01:29:45]} {[%emt 00:03:59]} Nd8 {[%clk 01:05:16]} {[%emt 00:06:14]}
11. Qxg7+ {[%clk 01:27:26]} {[%emt 00:02:50]} Kxg7 {[%clk 01:03:23]} {[%emt
00:02:23]} 12. Nf5+ {[%clk 01:27:48]} {[%emt 00:00:08]} Kf8 {[%clk 01:01:28]}
{[%emt 00:02:20]} 13. Nxh4 {[%clk 01:28:06]} {[%emt 00:00:16]} Ke8 {[%clk
01:00:42]} {[%emt 00:01:13]} 14. Rf1 {[%clk 01:27:40]} {[%emt 00:00:53]} Ne6
{[%clk 00:53:46]} {[%emt 00:07:32]} 15. d3 {[%clk 01:27:31]} {[%emt 00:00:40]}
Rh7 {[%clk 00:51:15]} {[%emt 00:03:00]} 16. Ng1 {[%clk 01:19:25]} {[%emt
00:08:37]} d6 {[%clk 00:48:16]} {[%emt 00:03:28]} 17. Ne2 {[%clk 01:19:36]}
{[%emt 00:00:20]} a6 {[%clk 00:47:40]} {[%emt 00:01:02]} 18. a3 {[%clk
01:19:18]} {[%emt 00:00:52]} Bd7 {[%clk 00:47:10]} {[%emt 00:00:59]} 19. Nc3
{[%clk 01:18:57]} {[%emt 00:00:51]} c6 {[%clk 00:46:47]} {[%emt 00:00:53]} 20.
Nf5 {[%clk 01:18:09]} {[%emt 00:01:18]} a5 {[%clk 00:41:52]} {[%emt 00:05:25]}
21. Na4 {[%clk 01:18:06]} {[%emt 00:00:29]} Rb8 {[%clk 00:40:40]} {[%emt
00:01:43]} 22. Nxc5 {[%clk 01:17:08]} {[%emt 00:01:31]} dxc5 {[%clk 00:40:55]}
{[%emt 00:00:16]} 23. Ba2 {[%clk 01:16:49]} {[%emt 00:00:49]} Kd8 {[%clk
00:38:06]} {[%emt 00:03:16]} 24. Be3 {[%clk 01:16:50]} {[%emt 00:00:31]} b6
{[%clk 00:36:21]} {[%emt 00:02:16]} 25. Kd2 {[%clk 01:16:18]} {[%emt 00:01:02]}
Kc7 {[%clk 00:35:53]} {[%emt 00:00:54]} 26. c3 {[%clk 01:16:28]} {[%emt
00:00:24]} Rf8 {[%clk 00:33:37]} {[%emt 00:02:44]} 27. b4 {[%clk 01:14:31]}
{[%emt 00:02:29]} cxb4 {[%clk 00:32:49]} {[%emt 00:01:18]} 28. axb4 {[%clk
01:14:04]} {[%emt 00:00:58]} a4 {[%clk 00:29:47]} {[%emt 00:03:32]} 29. Bxe6
{[%clk 01:14:12]} {[%emt 00:00:22]} Bxe6 {[%clk 00:29:38]} {[%emt 00:00:38]} 30.
Rxa4 {[%clk 01:14:24]} {[%emt 00:00:18]} Rb8 {[%clk 00:28:31]} {[%emt
00:01:37]} 31. Rfa1 {[%clk 01:14:29]} {[%emt 00:00:25]} Bxf5 {[%clk 00:27:05]}
{[%emt 00:01:56]} 32. exf5 {[%clk 01:14:16]} {[%emt 00:00:43]} Ne7 {[%clk
00:26:03]} {[%emt 00:01:31]} 33. Ra7+ {[%clk 01:14:31]} {[%emt 00:00:17]} Rb7
{[%clk 00:26:23]} {[%emt 00:00:10]} 34. R1a6 {[%clk 01:14:07]} {[%emt
00:00:54]} Nc8 {[%clk 00:24:43]} {[%emt 00:02:09]} 35. Rxb7+ {[%clk 01:13:57]}
{[%emt 00:00:40]} Kxb7 {[%clk 00:25:01]} {[%emt 00:00:13]} 36. Ra1 {[%clk
01:13:45]} {[%emt 00:00:43]} Nd6 {[%clk 00:24:21]} {[%emt 00:01:06]} 37. Rf1
{[%clk 01:13:26]} {[%emt 00:00:52]} h4 {[%clk 00:24:23]} {[%emt 00:00:27]} 38.
c4 {[%clk 01:13:05]} {[%emt 00:00:51]} Rd7 {[%clk 00:23:02]} {[%emt 00:01:50]}
39. Kc3 {[%clk 01:12:44]} {[%emt 00:00:52]} b5 {[%clk 00:21:01]} {[%emt
00:02:29]} 40. c5 {[%clk 01:12:46]} {[%emt 00:00:30]} Ne8 {[%clk 00:20:44]}
{[%emt 00:00:47]} 41. d4 {[%clk 01:12:57]} {[%emt 00:00:20]} exd4+ {[%clk
00:20:03]} {[%emt 00:01:11]} 42. Bxd4 {[%clk 01:13:11]} {[%emt 00:00:15]} Rg7
{[%clk 00:20:08]} {[%emt 00:00:26]} 43. Rf2 {[%clk 01:10:23]} {[%emt 00:03:18]}
Kc8 {[%clk 00:17:08]} {[%emt 00:03:29]} 44. Kd3 {[%clk 01:09:14]} {[%emt
00:01:40]} Kd7 {[%clk 00:17:15]} {[%emt 00:00:23]} 45. Ke4 {[%clk 01:09:27]}
{[%emt 00:00:17]} Ke7 {[%clk 00:15:40]} {[%emt 00:02:05]} 46. Kf3 {[%clk
01:09:00]} {[%emt 00:00:57]} Nc7 {[%clk 00:15:32]} {[%emt 00:00:38]} 47. g4
{[%emt 00:01:10]} hxg3 {[%clk 00:15:23]} 48. hxg3 {[%clk 01:08:29]} {[%emt
00:00:59]} Rg5 {[%clk 00:14:55]} {[%emt 00:00:57]} 49. g4 {[%clk 01:07:50]}
{[%emt 00:01:11]} Nd5 {[%clk 00:14:33]} {[%emt 00:00:51]} 50. Rb2 {[%clk
01:06:30]} {[%emt 00:01:51]} Rg8 {[%clk 00:14:23]} {[%emt 00:00:37]} 51. Be3
{[%clk 01:03:59]} {[%emt 00:03:03]} Ra8 {[%clk 00:13:40]} {[%emt 00:01:12]} 52.
Re2 {[%clk 01:04:16]} {[%emt 00:00:15]} Ra3 {[%clk 00:12:54]} {[%emt 00:01:15]}
53. Kf2 {[%clk 01:04:17]} {[%emt 00:00:30]} Nxe3 {[%clk 00:10:59]} {[%emt
00:02:24]} 54. Rxe3+ {[%clk 01:04:40]} {[%emt 00:00:07]} Rxe3 {[%clk 00:11:18]}
{[%emt 00:00:11]} 55. Kxe3 {[%clk 01:05:06]} {[%emt 00:00:04]} Kf7 {[%clk
00:11:35]} {[%emt 00:00:13]} 56. Kf4 {[%clk 01:05:33]} {[%emt 00:00:03]} Kg7
{[%clk 00:11:49]} {[%emt 00:00:16]} 57. g5 {[%clk 01:05:22]} {[%emt 00:00:42]}
fxg5+ {[%clk 00:08:56]} {[%emt 00:03:24]} 58. Kxg5 {[%clk 01:03:30]} {[%emt
00:02:22]} Kf7 {[%clk 00:09:19]} {[%emt 00:00:07]} 59. Kf4 {[%clk 01:01:53]}
{[%emt 00:02:07]} Kf6 {[%clk 00:09:26]} {[%emt 00:00:22]} 60. Ke4 {[%clk
01:02:12]} {[%emt 00:00:11]} Ke7 {[%clk 00:09:14]} {[%emt 00:00:42]} 61. Ke5
{[%clk 01:02:34]} {[%emt 00:00:09]} Kd7 {[%clk 00:08:49]} {[%emt 00:00:55]} 62.
Kf6 {[%clk 01:02:56]} {[%emt 00:00:08]} Ke8 {[%clk 00:08:54]} {[%emt 00:00:25]}
63. Kg7 {[%clk 01:03:16]} {[%emt 00:00:09]} Ke7 {[%clk 00:09:16]} {[%emt
00:00:08]} 64. f6+ {[%clk 01:03:40]} {[%emt 00:00:06]} Ke6 {[%clk 00:09:38]}
{[%emt 00:00:08]} 65. f7 {[%clk 01:04:04]} {[%emt 00:00:06]} Kd5 {[%clk
00:09:59]} {[%emt 00:00:08]} 66. f8=Q {[%clk 01:04:19]} {[%emt 00:00:15]} Kc4
{[%clk 00:10:22]} {[%emt 00:00:07]} 67. Qd6 {[%clk 01:04:33]} {[%emt 00:00:17]}
Kxb4 {[%clk 00:10:37]} {[%emt 00:00:15]} 68. Qxc6 {[%clk 01:04:52]} {[%emt
00:00:11]} Kc3 {[%clk 00:10:50]} {[%emt 00:00:17]} 69. Qxb5 {[%clk 01:05:04]}
{[%emt 00:00:18]} Kd4 {[%clk 00:10:43]} {[%emt 00:00:37]} 70. c6 {[%clk
01:05:21]} {[%emt 00:00:13]} Ke4 {[%clk 00:10:48]} {[%emt 00:00:24]} 71. c7
{[%clk 01:05:43]} {[%emt 00:00:08]} Kf3 {[%clk 00:11:16]} {[%emt 00:00:02]} 72.
c8=Q {[%emt 00:00:09]} Kg2 {[%emt 00:00:10]} 73. Qg4+ {[%clk 01:05:24]} {[%emt
00:00:30]} Kf2 {[%clk 00:11:03]} {[%emt 00:00:43]} 74. Qbe2# {[%clk 01:05:47]}
{[%emt 00:00:07]} 1-0

[Event "2. Itzehoer Schach Open"]
[Site "Itzehoe, Germany"]
[Date "2023.04.29"]
[Round "1.40"]
[White "Tobis, Julius"]
[Black "Kaehler, Marvin"]
[Result "1-0"]
[TimeControl "90 min für 40 Züge, Rest 30 min + 30 Sek pro Zug"]
[WhiteElo "1334"]
[BlackElo "1015"]

1. e4 {[%clk 01:30:58]} e6 {[%clk 01:27:43]} {[%emt 00:03:18]} 2. d4 {[%clk
01:31:14]} {[%emt 00:00:14]} g6 {[%clk 01:28:02]} {[%emt 00:00:10]} 3. Nf3
{[%clk 01:30:14]} {[%emt 00:01:30]} Bg7 {[%clk 01:27:35]} {[%emt 00:00:58]} 4.
Nc3 {[%clk 01:28:14]} {[%emt 00:02:30]} b6 {[%clk 01:27:59]} {[%emt 00:00:06]}
5. Ne2 {[%clk 01:27:15]} {[%emt 00:01:24]} Bb7 {[%clk 01:28:17]} {[%emt
00:00:16]} 6. Ng3 {[%clk 01:27:35]} {[%emt 00:00:11]} d6 {[%clk 01:26:47]}
{[%emt 00:02:00]} 7. Bb5+ {[%clk 01:26:25]} {[%emt 00:01:39]} Nd7 {[%clk
01:23:50]} {[%emt 00:03:27]} 8. O-O {[%clk 01:24:23]} {[%emt 00:02:32]} Qe7
{[%clk 01:23:29]} {[%emt 00:00:50]} 9. a4 {[%clk 01:21:28]} {[%emt 00:03:27]}
Ngf6 {[%clk 01:21:48]} {[%emt 00:02:11]} 10. e5 {[%clk 01:13:37]} {[%emt
00:08:20]} dxe5 {[%clk 01:19:28]} {[%emt 00:02:50]} 11. Nxe5 {[%clk 01:13:08]}
{[%emt 00:00:59]} O-O-O {[%clk 01:14:46]} {[%emt 00:05:12]} 12. Nc6 {[%clk
01:07:02]} {[%emt 00:06:36]} Bxc6 {[%clk 01:13:18]} {[%emt 00:01:59]} 13. Bxc6
{[%clk 01:07:20]} {[%emt 00:00:12]} e5 {[%clk 01:11:03]} {[%emt 00:02:45]} 14.
Qf3 {[%clk 01:04:13]} {[%emt 00:03:37]} exd4 {[%clk 01:01:36]} {[%emt
00:09:57]} 15. Bf4 {[%clk 00:59:59]} {[%emt 00:04:44]} Qc5 {[%clk 00:40:58]}
{[%emt 00:21:08]} 16. Bb5 {[%clk 00:56:56]} {[%emt 00:03:33]} Ne5 {[%clk
00:30:18]} {[%emt 00:11:10]} 17. Qa8# {[%clk 00:56:47]} 1-0